bitfinex/quotes_SOLUSD_20240620
["timestamp","ask_amount","ask_price","bid_price","bid_amount"]
[1718905250762,45.82163197,134.45,134.39,20.0]
[1718905251774,6.5564,134.43,134.39,20.0]
[1718905252065,6.5564,134.43,134.35,28.01]
[1718905252066,45.82163197,134.42,134.36,20.0]
[1718905252356,45.82163197,134.42,134.35,28.01]
[1718905254342,45.82163197,134.42,134.36,20.0]
[1718905255061,0.82163197,134.42,134.36,20.0]
[1718905255260,45.82163197,134.42,134.36,20.0]
[1718905256640,6.5564,134.43,134.37,0.6761053]
[1718905256841,6.5564,134.43,134.38,28.01]
[1718905257050,6.5564,134.43,134.39,20.0]
[1718905258552,7.37803197,134.43,134.39,20.0]
[1718905259243,6.5564,134.43,134.39,20.0]
[1718905261439,7.37803197,134.43,134.39,20.0]
[1718905262955,23.47433197,134.48,134.39,20.0]
[1718905263963,23.47433197,134.48,134.38,28.01]
[1718905264163,23.47433197,134.48,134.39,20.0]
[1718905264351,45.0,134.47,134.39,20.0]
[1718905264541,0.82163197,134.46,134.39,20.0]
[1718905264941,45.0,134.47,134.39,20.0]
[1718905265143,22.6527,134.48,134.39,20.0]
[1718905265338,0.82163197,134.47,134.39,20.0]
[1718905265563,0.82163197,134.47,134.4,28.01]
[1718905265767,0.82163197,134.47,134.41,20.0]
[1718905267166,45.82163197,134.47,134.41,20.0]
[1718905267553,45.82163197,134.47,134.38,20.0]
[1718905269464,45.82163197,134.47,134.37,20.0]
[1718905270066,6.2547,134.45,134.37,20.0]
[1718905270368,6.2547,134.42,134.37,20.0]
[1718905270549,45.82163197,134.41,134.32,20.0]
[1718905271151,0.82163197,134.41,134.32,20.0]
[1718905271949,7.07633197,134.42,134.34,28.01]
[1718905272157,6.2547,134.42,134.35,20.0]
[1718905272353,16.4788,134.43,134.37,28.01]
[1718905272655,6.2547,134.46,134.38,20.0]
[1718905272656,21.9932,134.46,134.38,20.0]
[1718905272859,0.82163197,134.45,134.38,20.0]
[1718905273884,45.82163197,134.45,134.38,20.0]
[1718905276776,21.9932,134.46,134.38,20.0]
[1718905277752,0.82163197,134.45,134.38,20.0]
[1718905278174,45.0,134.45,134.38,20.0]
[1718905278377,21.9932,134.46,134.38,20.0]
[1718905278555,0.82163197,134.45,134.38,20.0]
[1718905280999,45.82163197,134.45,134.38,20.0]
[1718905281275,45.82163197,134.45,134.36,20.0]
[1718905281651,45.82163197,134.45,134.34,20.0]
[1718905282182,44.76,134.43,134.34,20.0]
[1718905282386,52.11253197,134.42,134.31,20.0]
[1718905283277,96.87253197,134.42,134.31,20.0]
[1718905284279,52.11253197,134.42,134.31,20.0]
[1718905285072,96.87253197,134.42,134.31,20.0]
[1718905285277,52.11253197,134.42,134.31,20.0]
[1718905288004,16.1823,134.41,134.31,20.0]
[1718905288176,45.82163197,134.4,134.31,20.0]
[1718905288371,0.82163197,134.39,134.31,20.0]
[1718905293399,6.0528,134.38,134.31,20.0]
[1718905293604,61.75363197,134.37,134.29,20.0]
[1718905293909,61.75363197,134.37,134.27,28.01]
[1718905294985,61.75363197,134.37,134.28,20.0]
[1718905297709,61.75363197,134.37,134.28,28.01]
[1718905297898,61.75363197,134.37,134.29,20.0]
[1718905303319,61.75363197,134.37,134.27,28.01]
[1718905303486,61.75363197,134.37,134.28,20.0]
[1718905303687,61.75363197,134.37,134.29,1.63096364]
[1718905304586,61.75363197,134.37,134.29,3.12096083]
[1718905305905,0.82163197,134.36,134.28,20.0]
[1718905306095,0.82163197,134.36,134.3,28.01]
[1718905306296,15.932,134.37,134.31,20.0]
[1718905307002,6.0528,134.38,134.33,28.01]
[1718905307193,6.0528,134.38,134.34,20.0]
[1718905310301,6.0528,134.38,134.32,28.01]
[1718905310605,6.0528,134.38,134.33,20.0]
[1718905311111,0.82163197,134.4,134.33,20.0]
[1718905311417,6.0484,134.4,134.35,28.01]
[1718905311610,6.0484,134.4,134.36,20.0]
[1718905317317,6.87003197,134.4,134.36,20.0]
[1718905317495,6.0484,134.4,134.36,20.0]
[1718905320804,6.87003197,134.4,134.36,20.0]
[1718905321499,0.82163197,134.39,134.33,20.0]
[1718905321701,45.82163197,134.39,134.3,48.01]
[1718905322432,45.82163197,134.39,134.3,20.0]
[1718905322732,45.82163197,134.39,134.31,28.01]
[1718905323024,45.82163197,134.39,134.32,20.0]
[1718905323231,6.0484,134.4,134.32,20.0]
[1718905323535,6.87003197,134.4,134.32,20.0]
[1718905324227,0.82163197,134.39,134.32,20.0]
[1718905324722,45.82163197,134.39,134.32,20.0]
[1718905325395,45.82163197,134.39,134.31,28.01]
[1718905325609,45.82163197,134.39,134.32,20.0]
[1718905326695,6.0484,134.4,134.32,20.0]
[1718905326900,6.0484,134.4,134.34,28.01]
[1718905327096,15.2644,134.41,134.37,28.01]
[1718905327328,6.0731,134.43,134.38,20.0]
[1718905329623,16.2711,134.45,134.38,20.0]
[1718905329804,6.0957,134.47,134.4,28.01]
[1718905330012,6.0957,134.47,134.41,20.0]
[1718905334626,15.6207,134.49,134.43,28.01]
[1718905334930,15.6207,134.49,134.44,20.0]
[1718905337129,15.6207,134.49,134.38,15.6353]
[1718905337331,15.6207,134.49,134.43,28.01]
[1718905338422,6.5981,134.51,134.44,20.0]
[1718905339232,7.41973197,134.51,134.44,20.0]
[1718905340438,7.41973197,134.51,134.41,20.0]
[1718905341233,7.41973197,134.51,134.42,1.48526855]
[1718905341423,45.0,134.5,134.41,20.0]
[1718905341627,0.82163197,134.49,134.41,20.0]
[1718905341951,15.481,134.48,134.41,20.0]
[1718905342121,7.07613197,134.47,134.4,20.0]
[1718905342308,45.0,134.46,134.4,20.0]
[1718905342514,0.82163197,134.45,134.4,20.0]
[1718905343637,0.82163197,134.45,134.35,20.0]
[1718905343847,6.2545,134.47,134.35,28.01]
[1718905343848,15.2963,134.44,134.35,28.01]
[1718905344022,15.2963,134.44,134.38,28.01]
[1718905345045,0.82163197,134.43,134.33,6.0351]
[1718905345211,45.82163197,134.43,134.35,28.01]
[1718905345412,0.82163197,134.42,134.36,20.0]
[1718905345647,6.0374,134.41,134.36,20.0]
[1718905346011,6.0374,134.41,134.35,28.01]
[1718905347036,0.82163197,134.4,134.32,28.01]
[1718905347340,45.82163197,134.4,134.32,28.01]
[1718905347543,0.82163197,134.39,134.32,28.01]
[1718905347743,16.0402,134.38,134.32,28.01]
[1718905347915,0.82163197,134.37,134.3,20.0]
[1718905348423,0.82163197,134.37,134.31,20.0]
[1718905349329,45.82163197,134.37,134.31,20.0]
[1718905350012,45.82163197,134.37,134.3,20.0]
[1718905350510,6.5685,134.36,134.3,20.0]
[1718905350711,45.82163197,134.35,134.25,28.01]
[1718905350944,45.82163197,134.35,134.26,20.0]
[1718905351119,45.82163197,134.35,134.25,28.01]
[1718905351935,6.5685,134.36,134.28,28.01]
[1718905352423,0.82163197,134.35,134.29,20.0]
[1718905353151,45.82163197,134.35,134.29,20.0]
[1718905353523,6.5685,134.36,134.29,20.0]
[1718905355139,0.82163197,134.35,134.29,20.0]
[1718905355322,45.82163197,134.35,134.29,20.0]
[1718905355522,45.82163197,134.35,134.28,20.0]
[1718905357219,16.4662,134.34,134.28,20.0]
[1718905357417,45.82163197,134.33,134.25,20.0]
[1718905357621,7.38583197,134.32,134.25,20.0]
[1718905357922,45.0,134.31,134.25,20.0]
[1718905358243,45.0,134.31,134.24,20.0]
[1718905359071,0.82163197,134.3,134.24,20.0]
[1718905359455,16.6195,134.29,134.24,20.0]
[1718905359663,0.82163197,134.28,134.2,20.0]
[1718905359861,45.82163197,134.28,134.2,20.0]
[1718905360052,45.82163197,134.28,134.19,28.01]
[1718905361263,6.5349,134.27,134.19,28.01]
[1718905361439,45.82163197,134.26,134.19,28.01]
[1718905362295,45.82163197,134.26,134.2,20.0]
[1718905363368,45.82163197,134.26,134.19,20.0]
[1718905363959,6.5349,134.27,134.19,20.0]
[1718905366945,6.5349,134.27,134.2,0.17]
[1718905367270,6.5349,134.27,134.21,28.01]
[1718905367466,6.5349,134.27,134.22,20.0]
[1718905373150,6.5349,134.27,134.2,20.0]
[1718905374077,6.5349,134.27,134.2,48.01]
[1718905380160,45.82163197,134.26,134.2,20.0]
[1718905380484,0.82163197,134.26,134.2,20.0]
[1718905382357,0.82163197,134.26,134.21,1.60096914]
[1718905382762,0.82163197,134.26,134.2,20.0]
[1718905384685,6.5349,134.27,134.2,20.0]
[1718905385283,6.5349,134.27,134.22,28.01]
[1718905385468,6.5349,134.27,134.23,20.0]
[1718905385885,6.5349,134.27,134.2,20.0]
[1718905386587,6.5349,134.27,134.21,1.44022231]
[1718905387468,6.5349,134.27,134.2,20.0]
[1718905387975,0.82163197,134.26,134.2,20.0]
[1718905388362,6.5349,134.27,134.2,20.0]
[1718905389385,6.5349,134.27,134.26,9.34]
[1718905389590,6.5349,134.27,134.26,29.34]
[1718905390996,16.6195,134.29,134.26,38.68]
[1718905391169,16.6195,134.29,134.27,20.0]
[1718905391372,16.6195,134.29,134.27,29.34]
[1718905392862,17.44113197,134.29,134.27,20.0]
[1718905394068,16.6195,134.29,134.27,20.0]
[1718905394281,17.44113197,134.29,134.2,15.0618]
[1718905394476,17.44113197,134.29,134.26,9.34]
[1718905394677,17.44113197,134.29,134.27,20.0]
[1718905396196,16.6195,134.29,134.27,29.34]
[1718905396494,16.6195,134.29,134.27,20.0]
[1718905396691,16.6195,134.29,134.27,9.34]
[1718905396993,15.0866,134.32,134.28,9.34]
[1718905397176,15.0866,134.32,134.31,9.34]
[1718905397376,6.84783197,134.35,134.31,9.34]
[1718905397377,6.0262,134.35,134.31,29.34]
[1718905397592,6.0262,134.35,134.33,9.34]
[1718905398885,6.0262,134.35,134.34,9.34]
[1718905399272,6.84783197,134.35,134.33,9.34]
[1718905399488,6.84783197,134.35,134.29,20.0]
[1718905400386,6.0262,134.35,134.29,20.0]
[1718905400690,6.84783197,134.35,134.29,20.0]
[1718905402097,45.0,134.34,134.29,20.0]
[1718905402407,16.0717,134.32,134.25,20.0]
[1718905402585,51.82263197,134.31,134.21,27.99]
[1718905404407,51.82263197,134.31,134.22,20.0]
[1718905406083,22.0727,134.3,134.22,20.0]
[1718905406302,45.82163197,134.29,134.2,20.0]
[1718905408185,21.3344,134.28,134.2,20.0]
[1718905408388,21.3344,134.28,134.17,20.0]
[1718905408389,45.82163197,134.27,134.17,20.0]
[1718905408607,0.82163197,134.26,134.17,27.99]
[1718905408785,0.82163197,134.26,134.18,20.0]
[1718905409781,21.7392,134.25,134.18,20.0]
[1718905410002,45.82163197,134.24,134.18,20.0]
[1718905410215,0.82163197,134.23,134.16,0.8265353]
[1718905411410,0.82163197,134.23,134.16,20.8265353]
[1718905417189,21.5128,134.22,134.16,20.8265353]
[1718905417398,45.82163197,134.21,134.16,20.8265353]
[1718905417701,0.82163197,134.2,134.16,0.8265353]
[1718905423292,21.5128,134.22,134.16,0.8265353]
[1718905423492,0.82163197,134.21,134.16,0.8265353]
[1718905425410,0.82163197,134.21,134.19,9.35]
[1718905426521,21.5128,134.22,134.19,9.35]
[1718905426812,0.82163197,134.21,134.2,9.35]
[1718905426989,21.5128,134.22,134.19,9.35]
[1718905427190,0.82163197,134.21,134.19,9.35]
[1718905427420,0.82163197,134.21,134.2,9.35]
[1718905427892,0.82163197,134.21,134.19,9.35]
[1718905428819,22.33443197,134.22,134.2,9.35]
[1718905429195,45.0,134.21,134.19,9.35]
[1718905429521,0.82163197,134.2,134.18,9.35]
[1718905430816,0.82163197,134.2,134.17,9.35]
[1718905436710,0.82163197,134.2,134.16,0.8265353]
[1718905436898,0.82163197,134.2,134.16,30.1765353]
[1718905437306,21.5128,134.22,134.18,9.35]
[1718905438026,0.82163197,134.21,134.18,9.35]
[1718905438199,0.82163197,134.21,134.16,20.8265353]
[1718905438412,0.82163197,134.21,134.17,29.35]
[1718905438621,0.82163197,134.21,134.17,9.35]
[1718905440326,0.82163197,134.21,134.16,0.8265353]
[1718905440503,45.82163197,134.21,134.16,10.1765353]
[1718905440811,0.82163197,134.2,134.17,20.0]
[1718905441526,0.82163197,134.2,134.16,10.1765353]
[1718905441730,0.82163197,134.2,134.17,20.0]
[1718905443603,10.17163197,134.2,134.16,20.8265353]
[1718905445234,7.72358926,134.28,134.19,9.35]
[1718905445422,23.31633197,134.27,134.22,9.35]
[1718905445627,23.31633197,134.27,134.24,9.35]
[1718905445938,22.4947,134.27,134.25,9.35]
[1718905446305,0.82163197,134.26,134.21,1.48750756]
[1718905446523,23.31633197,134.27,134.24,9.35]
[1718905446737,0.82163197,134.26,134.24,9.35]
[1718905446927,0.82163197,134.26,134.23,9.35]
[1718905447116,0.82163197,134.26,134.24,20.0]
[1718905447310,23.31633197,134.27,134.24,29.35]
[1718905447609,22.4947,134.27,134.24,20.0]
[1718905447829,22.4947,134.27,134.2,20.0]
[1718905448130,16.1125,134.27,134.2,20.0]
[1718905449009,16.1125,134.27,134.2,28.02]
[1718905449334,16.1125,134.27,134.21,20.0]
[1718905449516,0.82163197,134.26,134.21,20.0]
[1718905450216,0.82163197,134.26,134.17,28.02]
[1718905450531,0.82163197,134.26,134.18,20.0]
[1718905451640,45.82163197,134.26,134.18,20.0]
[1718905452011,0.82163197,134.26,134.18,20.0]
[1718905453445,6.5973,134.25,134.18,20.0]
[1718905453618,0.82163197,134.24,134.18,20.0]
[1718905453805,45.82163197,134.24,134.16,20.8265353]
[1718905454010,0.82163197,134.23,134.16,20.8265353]
[1718905455014,16.3585,134.22,134.17,20.0]
[1718905455214,16.3585,134.22,134.16,0.8265353]
[1718905455215,0.82163197,134.21,134.16,0.8265353]
[1718905456245,17.18013197,134.22,134.16,0.8265353]
[1718905457127,16.3585,134.22,134.16,2.31364303]
[1718905457334,22.8149,134.25,134.17,28.02]
[1718905457645,0.82163197,134.24,134.18,20.0]
[1718905458951,22.8149,134.25,134.18,20.0]
[1718905459124,15.5441,134.28,134.2,28.02]
[1718905459446,15.5441,134.28,134.21,20.0]
[1718905459744,0.82163197,134.27,134.21,20.0]
[1718905460434,15.5441,134.28,134.21,20.0]
[1718905461045,15.5441,134.28,134.22,1.48775769]
[1718905461236,6.402,134.29,134.23,28.02]
[1718905461437,6.402,134.29,134.24,20.0]
[1718905465041,0.82163197,134.28,134.24,20.0]
[1718905465246,0.82163197,134.28,134.2,20.0]
[1718905465544,7.22363197,134.29,134.2,20.0]
[1718905466352,0.82163197,134.28,134.2,20.0]
[1718905466526,45.82163197,134.28,134.2,20.0]
[1718905466726,45.82163197,134.28,134.19,20.0]
[1718905466935,15.4943,134.27,134.19,20.0]
[1718905467248,0.82163197,134.26,134.19,20.0]
[1718905471028,16.31593197,134.27,134.19,20.0]
[1718905471238,0.82163197,134.26,134.19,20.0]
[1718905473455,0.82163197,134.26,134.18,20.0]
[1718905474441,16.31593197,134.27,134.18,20.0]
[1718905475530,15.4943,134.27,134.18,20.0]
[1718905475947,15.4943,134.27,134.2,28.02]
[1718905476358,15.4943,134.27,134.21,20.0]
[1718905476546,6.402,134.29,134.21,65.0]
[1718905480557,6.402,134.29,134.23,28.02]
[1718905480762,16.46,134.3,134.24,65.34]
[1718905482963,22.3587,134.33,134.24,87.72]
[1718905483169,22.3587,134.33,134.24,65.34]
[1718905487642,0.82163197,134.32,134.24,65.0]
[1718905487865,0.82163197,134.32,134.24,20.0]
[1718905494060,22.3587,134.33,134.24,20.0]
[1718905495455,22.3587,134.33,134.29,9.33]
[1718905495781,23.74683197,134.36,134.32,9.33]
[1718905496072,17.20343197,134.39,134.35,9.33]
[1718905496269,17.20343197,134.39,134.3,20.0]
[1718905496270,17.20343197,134.39,134.36,9.33]
[1718905496568,9.33,134.37,134.3,20.0]
[1718905496777,10.15163197,134.36,134.31,9.33]
[1718905496954,9.33,134.36,134.31,9.33]
[1718905497406,0.82163197,134.38,134.28,20.0]
[1718905497579,45.82163197,134.38,134.28,20.0]
[1718905498678,22.0152,134.37,134.28,20.0]
[1718905498880,45.82163197,134.36,134.27,20.0]
[1718905500579,45.82163197,134.36,134.24,20.0]
[1718905500750,6.0367,134.34,134.24,20.0]
[1718905500950,15.238,134.32,134.21,42.4]
[1718905501168,16.05963197,134.32,134.23,27.99]
[1718905501380,16.05963197,134.32,134.24,20.0]
[1718905502161,0.82163197,134.31,134.24,20.0]
[1718905504089,6.065,134.3,134.2,20.0]
[1718905504263,45.82163197,134.29,134.2,20.0]
[1718905504652,6.065,134.3,134.2,20.0]
[1718905504852,15.238,134.32,134.25,27.99]
[1718905505070,15.238,134.32,134.26,20.0]
[1718905506990,0.82163197,134.31,134.26,20.0]
[1718905507164,0.82163197,134.31,134.24,20.0]
[1718905507364,45.82163197,134.31,134.21,20.0]
[1718905507566,45.82163197,134.31,134.19,43.6855]
[1718905507567,45.82163197,134.31,134.2,20.0]
[1718905508787,45.82163197,134.31,134.21,45.0]
[1718905508989,45.82163197,134.31,134.22,20.0]
[1718905509288,6.0457,134.3,134.2,20.0]
[1718905509461,0.82163197,134.29,134.2,20.0]
[1718905510500,16.5678,134.28,134.2,20.0]
[1718905510790,45.82163197,134.27,134.17,20.0]
[1718905510977,0.82163197,134.26,134.16,43.2265353]
[1718905511766,6.3702,134.25,134.16,20.8265353]
[1718905512067,0.82163197,134.24,134.16,0.8265353]
[1718905512467,16.5368,134.23,134.16,0.8265353]
[1718905512879,0.82163197,134.22,134.16,0.8265353]
[1718905513291,6.3702,134.25,134.18,27.99]
[1718905513490,15.5747,134.27,134.21,50.39]
[1718905513679,6.4691,134.29,134.21,50.39]
[1718905513876,6.4691,134.29,134.22,20.0]
[1718905515290,7.29073197,134.29,134.22,20.0]
[1718905515473,7.29073197,134.29,134.19,47.99]
[1718905516390,7.29073197,134.29,134.19,20.0]
[1718905516578,7.29073197,134.29,134.18,47.99]
[1718905516781,7.29073197,134.29,134.19,45.0]
[1718905516974,7.29073197,134.29,134.2,20.0]
[1718905517695,16.0767,134.28,134.2,20.0]
[1718905517875,0.82163197,134.27,134.16,28.8165353]
[1718905518078,0.82163197,134.27,134.17,20.0]
[1718905518286,6.3151,134.26,134.17,20.0]
[1718905518498,16.4968,134.24,134.16,0.8265353]
[1718905518669,0.82163197,134.23,134.16,0.8265353]
[1718905520198,6.4468,134.22,134.16,0.8265353]
[1718905520366,7.26843197,134.22,134.16,0.8265353]
[1718905521394,15.9538,134.2,134.16,0.8265353]
[1718905521911,16.77543197,134.2,134.16,0.8265353]
[1718905522194,15.9538,134.2,134.16,0.8265353]
[1718905523397,0.82163197,134.19,134.16,0.8265353]
[1718905523689,6.2395,134.18,134.16,0.8265353]
[1718905523894,7.06113197,134.18,134.16,0.8265353]
[1718905524081,6.2395,134.18,134.16,0.8265353]
[1718905528381,0.82163197,134.17,134.16,0.8265353]
[1718905529283,15.6778,134.16,134.1,20.0]
[1718905529491,0.82163197,134.15,134.07,20.0]
[1718905529792,0.82163197,134.15,134.06,20.0]
[1718905530309,16.49943197,134.16,134.05,66.5571]
[1718905531186,16.49943197,134.16,134.06,67.57]
[1718905531396,16.49943197,134.16,134.07,20.0]
[1718905533182,16.49943197,134.16,134.06,20.0]
[1718905533913,45.0,134.15,134.06,20.0]
[1718905534292,0.82163197,134.14,134.06,20.0]
[1718905534610,0.82163197,134.14,134.05,44.1571]
[1718905534929,0.82163197,134.14,134.06,20.0]
[1718905535691,6.4192,134.13,134.06,20.0]
[1718905537200,15.7447,134.11,134.06,20.0]
[1718905539791,6.4192,134.13,134.06,20.0]
[1718905540303,7.24083197,134.13,134.06,20.0]
[1718905540605,7.24083197,134.13,134.05,0.7526]
[1718905542187,60.7918,134.12,134.05,0.7526]
[1718905542381,0.82163197,134.11,134.05,0.7526]
[1718905544890,45.82163197,134.11,134.05,0.7526]
[1718905545092,0.82163197,134.1,134.05,0.7526]
[1718905546413,16.61343197,134.12,134.05,0.7526]
[1718905546615,16.61343197,134.12,134.05,20.7526]
[1718905546997,15.7918,134.12,134.05,28.2123]
[1718905547300,15.7918,134.12,134.05,20.7526]
[1718905547615,6.4192,134.13,134.07,50.39]
[1718905547821,6.6022,134.18,134.1,27.99]
[1718905547990,6.6022,134.18,134.11,20.0]
[1718905548710,7.42383197,134.18,134.11,20.0]
[1718905549098,6.6022,134.18,134.11,20.0]
[1718905549599,0.82163197,134.17,134.1,20.0]
[1718905550005,0.82163197,134.17,134.08,20.0]
[1718905550211,45.82163197,134.17,134.07,20.0]
[1718905550397,45.82163197,134.17,134.06,20.0]
[1718905551010,15.3433,134.16,134.06,20.0]
[1718905551227,0.82163197,134.15,134.06,20.0]
[1718905551514,45.82163197,134.15,134.06,20.0]
[1718905551702,0.82163197,134.14,134.06,20.0]
[1718905552909,15.3433,134.16,134.06,20.0]
[1718905553115,0.82163197,134.15,134.06,20.0]
[1718905553322,45.82163197,134.15,134.06,20.0]
[1718905553515,0.82163197,134.14,134.06,20.0]
[1718905554521,15.541,134.12,134.06,20.0]
[1718905554703,0.82163197,134.11,134.05,0.7526]
[1718905556300,45.82163197,134.11,134.05,0.7526]
[1718905556638,15.541,134.12,134.05,0.7526]
[1718905556794,0.82163197,134.11,134.05,0.7526]
[1718905556995,15.541,134.12,134.05,0.7526]
[1718905557197,16.36263197,134.12,134.05,0.7526]
[1718905558218,15.541,134.12,134.05,0.7526]
[1718905559914,6.615,134.13,134.06,42.4]
[1718905560113,15.7434,134.15,134.07,45.0]
[1718905560299,15.7434,134.15,134.08,20.0]
[1718905560819,0.82163197,134.14,134.08,20.0]
[1718905561017,0.82163197,134.14,134.06,20.0]
[1718905561193,45.82163197,134.14,134.07,2.36872004]
[1718905561393,0.82163197,134.14,134.05,0.7526]
[1718905561597,45.82163197,134.14,134.05,2.21796028]
[1718905561805,45.82163197,134.14,134.05,0.7526]
[1718905562005,45.82163197,134.14,134.05,20.7526]
[1718905562329,15.7434,134.15,134.06,68.1425892]
[1718905562501,15.7434,134.15,134.07,42.57]
[1718905562804,6.1684,134.16,134.08,83.2737]
[1718905563007,16.0202,134.19,134.09,42.4]
[1718905563219,16.0202,134.19,134.1,46.48851654]
[1718905563420,16.0202,134.19,134.11,21.48840554]
[1718905563732,16.0202,134.19,134.12,45.0]
[1718905564019,0.82163197,134.18,134.13,21.49294174]
[1718905564211,0.82163197,134.18,134.13,20.0]
[1718905564412,0.82163197,134.18,134.09,20.0]
[1718905564615,6.0513,134.17,134.07,20.0]
[1718905564802,6.0513,134.17,134.05,0.7526]
[1718905564803,45.82163197,134.16,134.05,20.7526]
[1718905565013,45.82163197,134.16,134.05,0.7526]
[1718905565600,15.7238,134.15,134.05,0.7526]
[1718905565800,0.82163197,134.14,134.05,0.7526]
[1718905566403,15.7238,134.15,134.05,0.7526]
[1718905566716,0.82163197,134.14,134.05,0.7526]
[1718905567017,16.54543197,134.15,134.05,0.7526]
[1718905567610,0.82163197,134.14,134.05,0.7526]
[1718905567809,15.7238,134.15,134.05,5.35227817]
[1718905567998,15.7238,134.15,134.06,65.0]
[1718905568431,0.82163197,134.14,134.06,65.0]
[1718905568800,15.7238,134.15,134.06,65.0]
[1718905569304,45.82163197,134.14,134.06,20.0]
[1718905569506,45.82163197,134.14,134.05,0.7526]
[1718905569507,6.0029,134.13,134.05,0.7526]
[1718905569820,6.82453197,134.13,134.05,0.7526]
[1718905570418,6.82453197,134.13,134.05,20.7526]
[1718905571625,16.0788,134.11,134.05,20.7526]
[1718905571924,6.4917,134.09,134.05,0.7526]
[1718905572232,0.82163197,134.08,134.05,0.7526]
[1718905574530,7.31333197,134.09,134.05,0.7526]
[1718905575527,6.4917,134.09,134.05,0.7526]
[1718905575916,0.82163197,134.08,134.05,0.7526]
[1718905577204,7.31333197,134.09,134.05,0.7526]
[1718905578209,6.4917,134.09,134.05,0.7526]
[1718905578727,16.0788,134.11,134.07,7.4583]
[1718905578933,6.2759,134.13,134.08,20.0]
[1718905579534,6.2759,134.13,134.05,20.7526]
[1718905579717,6.2759,134.13,134.05,43.1526]
[1718905579904,6.2759,134.13,134.06,67.57]
[1718905580219,15.8817,134.14,134.07,20.0]
[1718905580606,6.6655,134.16,134.08,45.17]
[1718905580817,6.6655,134.16,134.09,20.0]
[1718905582231,6.2088,134.19,134.1,0.17]
[1718905582535,6.2088,134.19,134.1,82.9499]
[1718905583033,6.2088,134.19,134.11,20.0]
[1718905583343,0.82163197,134.18,134.11,20.0]
[1718905583517,0.82163197,134.18,134.1,20.0]
[1718905584034,0.82163197,134.18,134.08,20.0]
[1718905585839,45.82163197,134.18,134.08,20.0]
[1718905586551,15.2565,134.17,134.08,20.0]
[1718905586829,45.82163197,134.16,134.06,20.0]
[1718905588010,6.6114,134.15,134.06,20.0]
[1718905588206,45.82163197,134.14,134.05,0.7526]
[1718905588410,15.4547,134.13,134.05,0.7526]
[1718905588632,45.82163197,134.12,134.05,0.7526]
[1718905589614,15.4547,134.13,134.05,0.7526]
[1718905591046,0.82163197,134.12,134.05,0.7526]
[1718905591637,45.82163197,134.12,134.05,0.7526]
[1718905591817,0.82163197,134.12,134.05,0.7526]
[1718905593027,45.82163197,134.12,134.05,0.7526]
[1718905594435,15.4547,134.13,134.05,0.7526]
[1718905594639,0.82163197,134.12,134.05,0.7526]
[1718905594822,45.82163197,134.12,134.05,0.7526]
[1718905596337,0.82163197,134.12,134.05,0.7526]
[1718905597741,6.4735,134.11,134.05,0.7526]
[1718905597929,45.82163197,134.1,134.05,0.7526]
[1718905598540,0.82163197,134.1,134.05,0.7526]
[1718905599239,45.82163197,134.1,134.05,0.7526]
[1718905600542,6.4735,134.11,134.05,0.7526]
[1718905601246,45.82163197,134.1,134.05,0.7526]
[1718905601619,0.82163197,134.09,134.05,0.7526]
[1718905604244,15.438,134.08,134.05,0.7526]
[1718905604422,45.82163197,134.07,134.05,0.7526]
[1718905604920,6.6611,134.06,134.05,0.7526]